fUSD/lending_fUSD_20260419
["ID","MTS","AMOUNT","RATE_DAILY","PERIOD"]
[420816978,1776563474791,2000.0,0.00032876,120]
[420816979,1776563495367,2000.0,0.00032876,120]
[420816980,1776563531261,2000.0,0.00032876,120]
[420816981,1776563538895,2000.0,0.00032876,120]
[420816982,1776563546562,2000.0,0.00032876,120]
[420816983,1776563570361,2000.0,0.00032876,120]
[420816984,1776563576439,2000.0,0.00032876,120]
[420816985,1776563583910,2000.0,0.00032876,120]
[420816986,1776563589912,2000.0,0.00032876,120]
[420816987,1776563596103,2000.0,0.00032876,120]
[420816988,1776563603312,2000.0,0.00032876,120]
[420816989,1776563611929,2000.0,0.00032876,120]
[420816990,1776563619667,2000.0,0.00032876,120]
[420816991,1776563626031,2000.0,0.00032876,120]
[420816992,1776563635434,245.0,0.00032876,120]
[420816993,1776563641259,2000.0,0.00032876,120]
[420816994,1776563647688,2000.0,0.00032876,120]
[420816995,1776563657139,500.0,0.00032876,120]
[420816996,1776563657219,2000.0,0.00032876,120]
[420816997,1776563663259,2000.0,0.00032876,120]
[420816998,1776563669499,2000.0,0.00032876,120]
[420816999,1776563676234,2000.0,0.00032876,120]
[420817000,1776563683448,2000.0,0.00032876,120]
[420817001,1776563685283,600.56645393,0.00032876,120]
[420817002,1776563690579,2000.0,0.00032876,120]
[420817003,1776563795793,162.0,0.00032876,120]
[420817004,1776563803483,181.35,0.00030411,120]
[420817005,1776563811716,5215.00974946,0.000328,120]
[420817006,1776563931043,500.0,0.00032192,120]
[420817007,1776563939565,606.15135526,0.0003,120]
[420817008,1776563998865,168.81476278,0.0003,120]
[420817009,1776564044167,566.40494687,0.00029999,120]
[420817014,1776564120011,300.38885996,0.00032877,120]
[420817021,1776564476032,231.0,0.00032877,120]
[420817031,1776564631913,-1200.0,7.97e-05,2]
[420817032,1776564631924,-300.0,7.97e-05,2]
[420817033,1776564631934,-155.87277336,7.97e-05,2]
[420817034,1776564631945,-250.0,7.97e-05,2]
[420817035,1776564631956,-173409.853,7.971e-05,2]
[420817036,1776564631966,-300.0,8.07e-05,2]
[420817037,1776564631976,-315.46954088,8.2e-05,2]
[420817038,1776564631987,-201.47,8.22e-05,2]
[420817039,1776564631997,-155.15,8.22e-05,2]
[420817040,1776564632007,-1680.0,8.767e-05,2]
[420817041,1776564632016,-300.0,8.767e-05,2]
[420817042,1776564632026,-5000.0,8.767e-05,2]
[420817043,1776564632036,-250.0,8.767e-05,2]
[420817044,1776564632046,-1216.0,9.644e-05,2]
[420817045,1776564632056,-5953.32,9.763e-05,2]
[420817046,1776564632066,-9999.99,9.763e-05,2]
[420817047,1776564632076,-9999.99,9.763e-05,2]
[420817048,1776564632086,-299.99,9.763e-05,2]
[420817049,1776564632095,-9999.99,9.763e-05,2]
[420817050,1776564632105,-150.99,9.763e-05,2]
[420817051,1776564632115,-851.83082795,0.00011099,2]
[420817052,1776564632125,-851.83082789,0.00011099,2]
[420817053,1776564632135,-851.83082789,0.00011099,2]
[420817054,1776564632144,-173.04115532,0.00011099,2]
[420817055,1776564632154,-173.0411553,0.00011175,2]
[420817056,1776564632164,-1200.0,0.000116,4]
[420817057,1776564632173,-2400.0,0.000117,4]
[420817058,1776564632183,-3700.0,0.000118,4]
[420817059,1776564632193,-13334.91968389,0.000118,2]
[420817060,1776564632203,-265.12247201,0.00011874,5]
[420817061,1776564632213,-265.12247201,0.00011874,5]
[420817063,1776564632222,-163.746,0.00011874,2]
[420817065,1776564632232,-166.386,0.00011874,2]
[420817067,1776564632241,-416.0,0.00011874,2]
[420817069,1776564632251,-2473.0,0.00011874,2]
[420817070,1776564632260,-63934.09240083,0.000119,2]
[420817071,1776564632587,-22980.79477082,0.000119,2]
[420817072,1776564632597,-259.05302907,0.000119,2]
[420817073,1776564632608,-5000.0,0.000119,2]
[420817074,1776564632618,-4900.0,0.000119,4]
[420817075,1776564632628,-485.82545139,0.00011919,2]
[420817076,1776564632755,-1732.34156677,0.00011919,2]
[420817079,1776564637903,-500.0,0.00011599,2]
[420817080,1776564637913,-500.0,0.00011599,2]
[420817081,1776564637923,-507.28113427,0.00011599,2]
[420817082,1776564637934,-500.0,0.00011599,2]
[420817083,1776564637943,-500.0,0.00011599,2]
[420817084,1776564637954,-273.92445826,0.00011599,2]
[420817085,1776564637968,-468.06567006,0.00011919,2]
[420817086,1776564637978,-819.9985842,0.00011921,2]
[420817087,1776564637988,-187.33661247,0.0001199,2]
[420817088,1776564637998,-328.34654226,0.0001199,2]
[420817089,1776564638009,-250.0,0.00011999,2]
[420817090,1776564638019,-273.42790989,0.00011999,2]
[420817091,1776564638029,-500.0,0.00011999,2]
[420817092,1776564638038,-500.0,0.00011999,2]
[420817093,1776564638048,-453.05766901,0.00011999,2]
[420817094,1776564638058,-500.0,0.00011999,2]
[420817095,1776564638068,-500.0,0.00011999,2]
[420817096,1776564638078,-500.0,0.00011999,2]
[420817122,1776564638681,-500.0,0.00011999,2]
[420817128,1776564638767,-500.0,0.00011999,2]
[420817130,1776564638776,-268.10931132,0.00011999,2]
[420817132,1776564638785,-500.0,0.00011999,2]
[420817134,1776564638795,-758183.32830954,0.00012,2]
[420817264,1776564641149,-497.813004,0.00012,2]
[420817265,1776564641195,-1119.63477242,0.00012,2]
[420817286,1776564645808,-184.01,0.0001107,2]
[420817287,1776564645818,-368.04,0.0001194,2]
[420817288,1776564645828,-3085.92003752,0.00012,2]
[420817289,1776564645863,-199542.0541862,0.00012,2]
[420817290,1776564646180,-291.00000001,0.00012,2]
[420817291,1776564646234,-267.19528292,0.00012,2]
[420817292,1776564646245,-424.56240034,0.00012,2]
[420817298,1776564668192,1010.85,0.000325,120]
[420817299,1776564803094,500.0,0.00025592,120]
[420817300,1776564803449,500.0,0.00026761,120]
[420817301,1776564803817,500.0,0.0002793,120]
[420817302,1776564804239,500.0,0.00029099,120]
[420817303,1776564804574,500.0,0.00030268,120]
[420817304,1776564804952,500.0,0.00031437,120]
[420817305,1776564805347,500.0,0.00032606,120]
[420817306,1776565039096,400.0,0.00032,120]
[420817307,1776565056454,413.0,0.0003,120]
[420817308,1776565098062,2000.0,0.00032,120]
[420817309,1776565107563,3313.628,0.0003,120]
[420817310,1776565135517,1000.0,0.00032,120]
[420817311,1776565243013,391.0,0.00032876,120]
[420817312,1776565550027,1010.85,0.00032,120]
[420817313,1776565550991,1010.85,0.000328,120]
[420817314,1776565812418,300.0,0.0003287,120]
[420817321,1776565832009,-1200.0,7.77e-05,2]
[420817322,1776565832019,-150.0,7.77e-05,2]
[420817323,1776565832029,-300.0,7.77e-05,2]
[420817324,1776565832039,-2759.97031525,7.771e-05,2]
[420817325,1776565832050,-1441.83564373,7.771e-05,2]
[420817326,1776565832062,-404.30213,7.771e-05,2]
[420817327,1776565832074,-673.90711308,7.771e-05,2]
[420817328,1776565832173,-310.14725408,7.771e-05,2]
[420817329,1776565832231,-253315.84224386,7.771e-05,2]
[420817330,1776565832240,-197.10271758,7.87e-05,2]
[420817331,1776565832250,-150.51,8.22e-05,2]
[420817332,1776565832260,-1680.0,8.547e-05,2]
[420817333,1776565832269,-255.0,8.547e-05,2]
[420817334,1776565832279,-300.0,8.547e-05,2]
[420817335,1776565832289,-300.0,8.548e-05,2]
[420817336,1776565832298,-300.0,8.657e-05,2]
[420817337,1776565832309,-300.0,8.657e-05,2]
[420817338,1776565832319,-300.0,8.657e-05,2]
[420817339,1776565832329,-250.0,8.657e-05,2]
[420817340,1776565832338,-18005.73760388,9.264e-05,2]
[420817341,1776565832348,-7975.1439,9.663e-05,2]
[420817342,1776565832358,-1000.0,9.663e-05,2]
[420817343,1776565832367,-258.02,0.0001,2]
[420817344,1776565832376,-151.0,0.0001,2]
[420817345,1776565832386,-151.0,0.0001,2]
[420817346,1776565832396,-151.0,0.0001,2]
[420817348,1776565832406,-151.0,0.0001,2]
[420817350,1776565832416,-151.0,0.0001,2]
[420817352,1776565832426,-151.0,0.0001,2]
[420817354,1776565832435,-151.0,0.0001,2]
[420817356,1776565832444,-151.0,0.0001,2]
[420817358,1776565832454,-151.0,0.0001,2]
[420817360,1776565832463,-151.0,0.0001,2]
[420817362,1776565832473,-151.0,0.0001,2]
[420817364,1776565832482,-151.0,0.0001,2]
[420817366,1776565832492,-250.44,0.00010224,2]
[420817368,1776565832502,-2000.0,0.00010629,2]
[420817370,1776565832512,-1500.0,0.00010724,2]
[420817372,1776565832522,-10547.36,0.00010736,2]
[420817374,1776565832531,-500.0,0.000108,2]
[420817375,1776565832542,-153.09726384,0.000108,2]
[420817376,1776565832551,-150.1186832,0.000108,2]
[420817377,1776565832561,-216.53698994,0.000108,2]
[420817378,1776565832570,-153.59245439,0.000108,2]
[420817379,1776565832580,-152.74389707,0.000108,2]
[420817380,1776565832589,-150.96698935,0.000108,2]
[420817381,1776565832599,-151.53996049,0.000108,2]
[420817382,1776565832609,-154.55638273,0.000108,2]
[420817383,1776565832619,-150.32659189,0.000108,2]
[420817384,1776565832629,-150.42289677,0.000108,2]
[420817385,1776565832638,-150.44489196,0.000108,2]
[420817386,1776565832648,-153.38644675,0.000108,2]
[420817387,1776565832657,-151.37430028,0.000108,2]
[420817388,1776565832667,-153.45724389,0.000108,2]
[420817389,1776565832677,-500.0,0.00010898,2]
[420817390,1776565832689,-191.39953692,0.00010898,2]
[420817391,1776565832699,-500.0,0.00010898,2]
[420817392,1776565832709,-500.0,0.00010898,2]
[420817393,1776565832719,-437.67651793,0.00010898,2]
[420817394,1776565832729,-367.14036831,0.00010898,2]
[420817395,1776565832738,-500.0,0.00010898,2]
[420817396,1776565832749,-500.0,0.00010898,2]
[420817397,1776565832759,-500.0,0.00010898,2]
[420817398,1776565832770,-490.50703534,0.00010898,2]
[420817399,1776565832779,-500.0,0.00010898,2]
[420817400,1776565832789,-11668.05472343,0.000109,2]
[420817401,1776565832799,-542.37291436,0.00010964,2]
[420817402,1776565832809,-9999.99,0.00010964,2]
[420817403,1776565832819,-7184.02,0.00010964,2]
[420817404,1776565832829,-4999.99,0.00010964,2]
[420817405,1776565832839,-14127.93,0.00010964,2]
[420817406,1776565832848,-9467.83,0.00010964,2]
[420817407,1776565832858,-3240.0,0.00011055,2]
[420817408,1776565832868,-299.99,0.00011055,2]
[420817409,1776565832878,-7977.3,0.00011055,2]
[420817410,1776565832888,-518.91,0.00011055,2]
[420817411,1776565832897,-24999.99,0.00011055,2]
[420817412,1776565832907,-9999.99,0.00011055,2]
[420817413,1776565832916,-150.99,0.00011055,2]
[420817414,1776565832926,-9999.99,0.00011055,2]
[420817415,1776565832935,-167.06,0.00011088,2]
[420817416,1776565832945,-1664.98013302,0.00011099,2]
[420817417,1776565832955,-1664.98013294,0.00011099,2]
[420817418,1776565832964,-173.0411553,0.00011099,2]
[420817419,1776565832974,-900.0,0.000116,4]
[420817420,1776565832983,-150.36,0.00011642,2]
[420817421,1776565832993,-1800.0,0.000117,4]
[420817422,1776565833003,-708.13959131,0.00011781,2]
[420817423,1776565833012,-2700.0,0.000118,4]
[420817424,1776565833023,-5000.0,0.000119,2]
[420817425,1776565833033,-3600.0,0.000119,4]
[420817426,1776565833043,-702.85592934,0.00011917,2]
[420817427,1776565833052,-172.70201938,0.00011917,2]
[420817428,1776565833063,-2000.0,0.00011958,2]
[420817429,1776565833073,-155.6422866,0.00011985,2]
[420817430,1776565833083,-89554.2400083,0.00011985,2]
[420817431,1776565833092,-12142.5826965,0.00011985,2]
[420817432,1776565833102,-151.0,0.00011997,2]
[420817433,1776565833112,-151.0,0.00011997,2]
[420817434,1776565833121,-153.4004789,0.00011997,2]
[420817435,1776565833131,-250.0,0.00011997,2]
[420817436,1776565833141,-17174.00084661,0.00012,2]
[420817437,1776565833154,-37969.60410937,0.00012,2]
[420817445,1776565838185,-132542.80339057,0.00012,2]
[420817447,1776565838196,-287.04429587,0.00012,2]
[420817495,1776565840758,-3532.20722519,0.00012,2]
[420817514,1776565843251,-187.33661247,0.0001199,2]
[420817515,1776565843261,-902.1207416,0.00012,2]
[420817530,1776565848381,-4051.88876883,0.00012,2]
[420817531,1776565848409,-291.93750002,0.00012,2]
[420817532,1776565848420,-3775.25,0.00012,2]
[420817534,1776565998765,500.0,0.00025592,120]
[420817535,1776565999086,500.0,0.00026898,120]
[420817536,1776565999417,500.0,0.00028204,120]
[420817537,1776565999764,500.0,0.0002951,120]
[420817538,1776566000098,500.0,0.00030816,120]
[420817539,1776566000438,500.0,0.00032122,120]
[420817540,1776566018378,671.94782969,0.0003212,120]
[420817541,1776566091127,543.0,0.0003287,120]
[420817542,1776566091387,212.0,0.0003287,120]
[420817543,1776566092168,506.74472953,0.0003287,120]
[420817544,1776566106713,500.0,0.0003287,120]
[420817545,1776566138727,721.89725995,0.0003287,120]
[420817546,1776566448985,1010.85,0.0003264,120]
[420817547,1776566594657,500.0,0.00025592,120]
[420817548,1776566594973,500.0,0.00027325,120]
[420817549,1776566595375,500.0,0.00029058,120]
[420817550,1776566595719,500.0,0.00030791,120]
[420817551,1776566597320,500.0,0.00032524,120]
[420817552,1776566719895,2500.0,0.00032877,120]
[420817555,1776567032298,-288.0,7.67e-05,2]
[420817556,1776567032309,-300.0,7.67e-05,2]
[420817557,1776567032319,-300.0,7.67e-05,2]
[420817558,1776567032329,-1200.0,7.67e-05,2]
[420817559,1776567032339,-1034.2849,7.671e-05,2]
[420817560,1776567032349,-535159.71987214,7.671e-05,2]
[420817561,1776567032361,-27666.43805222,7.671e-05,2]
[420817562,1776567032373,-87349.6670616,7.671e-05,2]
[420817563,1776567032386,-30453.48221404,7.671e-05,2]
[420817564,1776567032396,-500.0,7.77e-05,2]
[420817565,1776567032406,-500.0,7.77e-05,2]
[420817566,1776567032416,-356.37356255,7.77e-05,2]
[420817567,1776567032426,-500.0,7.77e-05,2]
[420817568,1776567032436,-543.35492474,7.77e-05,2]
[420817569,1776567032446,-300.0,7.77e-05,2]
[420817570,1776567032456,-500.0,8.219e-05,2]
[420817571,1776567032466,-456.99825781,8.219e-05,2]
[420817572,1776567032476,-1680.0,8.437e-05,2]
[420817573,1776567032486,-300.0,8.437e-05,2]
[420817574,1776567032496,-300.0,8.437e-05,2]
[420817575,1776567032507,-300.0,8.437e-05,2]
[420817577,1776567032518,-300.0,8.437e-05,2]
[420817579,1776567032528,-5000.0,8.437e-05,2]
[420817581,1776567032538,-194.80530298,8.437e-05,2]
[420817583,1776567032548,-250.0,8.437e-05,2]
[420817585,1776567032558,-185.21,8.438e-05,2]
[420817587,1776567032568,-250.0,8.438e-05,2]
[420817589,1776567032578,-708.10694529,8.546e-05,2]
[420817590,1776567032588,-420.0,8.547e-05,2]
[420817591,1776567032598,-185.21,8.712e-05,2]
[420817592,1776567032608,-185.23,8.986e-05,2]
[420817593,1776567032618,-150.05,9.163e-05,2]
[420817594,1776567032628,-999.99,9.163e-05,2]
[420817595,1776567032638,-24999.99,9.163e-05,2]
[420817596,1776567032648,-9999.99,9.163e-05,2]
[420817597,1776567032658,-5398.97,9.163e-05,2]
[420817598,1776567032667,-150.99,9.163e-05,2]
[420817599,1776567032677,-299.99,9.163e-05,2]
[420817600,1776567032687,-4496.58200603,9.163e-05,2]
[420817601,1776567032699,-959.58851464,9.163e-05,2]
[420817602,1776567032720,-4293.46109909,9.163e-05,2]
[420817603,1776567032732,-250.35838024,9.163e-05,2]
[420817604,1776567032742,-1519.64161976,9.163e-05,2]
[420817605,1776567032758,-3480.34838024,9.163e-05,2]
[420817606,1776567032768,-1920.0,9.281e-05,2]
[420817607,1776567032778,-181.0,9.402e-05,2]
[420817608,1776567032787,-151.0,0.0001,2]
[420817609,1776567032797,-165.08973434,0.0001,2]
[420817610,1776567032809,-270.37737651,0.0001,2]
[420817611,1776567032826,-76.03748868,0.0001,2]
[420817612,1776567032836,-151.0,0.0001,2]
[420817613,1776567032846,-151.0,0.0001,2]
[420817614,1776567032855,-151.0,0.0001,2]
[420817615,1776567032865,-151.0,0.0001,2]
[420817616,1776567032874,-151.0,0.0001,2]
[420817617,1776567032884,-151.0,0.0001,2]
[420817618,1776567032894,-151.0,0.0001,2]
[420817619,1776567032904,-151.0,0.0001,2]
[420817620,1776567032914,-151.0,0.0001,2]
[420817621,1776567032923,-151.0,0.0001,2]
[420817622,1776567032933,-144.33339158,0.0001,2]
[420817668,1776567040456,-6.66660842,0.0001,2]
[420817669,1776567040465,-151.0,0.0001,2]
[420817670,1776567040475,-510.98825564,0.0001,2]
[420817671,1776567040484,-1295.15761124,0.0001,2]
[420817672,1776567040493,-152.51041987,0.0001,2]
[420817673,1776567040503,-1600.0,0.00010359,2]
[420817674,1776567040512,-250.29675709,0.00010494,2]
[420817675,1776567040522,-11228.27906116,0.00010685,2]
[420817676,1776567040533,-606.6000014,0.00010685,2]
[420817677,1776567040544,-7443.72560404,0.00010685,2]
[420817678,1776567040615,-336.32347338,0.00010685,2]
[420817679,1776567040627,-337.05962658,0.00010685,2]
[420817680,1776567040880,-1428.1444038,0.00010685,2]
[420817681,1776567040891,-3093.41928878,0.00010685,2]
[420817682,1776567040986,-1654.29376515,0.00010685,2]
[420817701,1776567043515,-3708.30495298,0.00010685,2]
[420817715,1776567046401,-107078.27592499,0.00010685,2]
[420817716,1776567046413,-67905.82239106,0.00010685,2]
[420817717,1776567046719,-2119.98767991,0.00010685,2]
[420817718,1776567046881,-796.42382677,0.00010685,2]
[420817719,1776567046891,-142.36263316,0.000108,2]
[420817740,1776567064463,519.22807594,0.00032877,120]
[420817745,1776567200603,277.791571,0.00029753,120]
[420817746,1776567289616,1571.69,0.00032603,120]
[420817747,1776567289669,1066.19,0.00032603,120]
[420817748,1776567295346,1571.69,0.00032603,120]
[420817749,1776567295397,1066.19,0.00032603,120]
[420817750,1776567295487,1571.69,0.00032603,120]
[420817751,1776567295548,844.6020514,0.00032603,120]
[420817752,1776567296533,1571.69,0.00032603,120]
[420817753,1776567298901,1228.13857824,0.00032603,120]
[420817754,1776567335968,1000.0,0.00032603,120]
[420817758,1776567747889,200.0,0.0003287,120]
[420817759,1776567777187,333.88,0.000328,120]
[420817760,1776567798875,500.0,0.00029753,120]
[420817761,1776567961320,157.0,0.000328,120]
[420817762,1776567964116,157.0,0.000328,120]
[420817763,1776568055865,165.18,0.000328,120]
[420817764,1776568068277,157.0,0.000328,120]
[420817765,1776568078512,157.0,0.000328,120]
[420817766,1776568095403,2178.02,0.00032876,120]
[420817772,1776568232459,-1200.0,7.57e-05,2]
[420817773,1776568232468,-571.052,7.571e-05,2]
[420817774,1776568232478,-4156.5339,7.571e-05,2]
[420817775,1776568232488,-249.0,7.571e-05,2]
[420817776,1776568232498,-300.0,7.667e-05,2]
[420817777,1776568232507,-280.85155108,7.669e-05,2]
[420817778,1776568232517,-294.0,7.669e-05,2]
[420817779,1776568232526,-273.8863548,7.669e-05,2]
[420817780,1776568232536,-155.89,8.22e-05,2]
[420817781,1776568232545,-150.0,8.22e-05,2]
[420817782,1776568232555,-341.0,8.327e-05,2]
[420817783,1776568232568,-250.0,8.327e-05,2]
[420817784,1776568232579,-300.0,8.328e-05,2]
[420817785,1776568232590,-300.0,8.328e-05,2]
[420817786,1776568232599,-300.0,8.328e-05,2]
[420817787,1776568232609,-300.0,8.328e-05,2]
[420817788,1776568232619,-3033.55993546,8.328e-05,2]
[420817789,1776568232628,-150.0,8.434e-05,2]
[420817790,1776568232638,-273.0,8.434e-05,2]
[420817791,1776568232647,-150.0,8.52e-05,2]
[420817792,1776568232658,-501.70516219,8.573e-05,2]
[420817793,1776568232668,-500.0,8.712e-05,2]
[420817794,1776568232678,-161.48,8.82e-05,2]
[420817795,1776568232687,-474.1616896,9.163e-05,2]
[420817796,1776568232697,-255.0,9.277e-05,2]
[420817797,1776568232707,-2000.0,9.765e-05,2]
[420817798,1776568232716,-7893.63,9.987e-05,2]
[420817799,1776568232725,-151.0,0.0001,2]
[420817800,1776568232735,-151.0,0.0001,2]
[420817801,1776568232744,-151.0,0.0001,2]
[420817802,1776568232754,-151.0,0.0001,2]
[420817803,1776568232764,-151.0,0.0001,2]
[420817804,1776568232774,-151.0,0.0001,2]
[420817805,1776568232784,-151.0,0.0001,2]
[420817806,1776568232797,-151.0,0.0001,2]
[420817807,1776568232807,-151.0,0.0001,2]
[420817808,1776568232816,-151.0,0.0001,2]
[420817809,1776568232826,-225.1875034,0.0001,2]
[420817810,1776568232837,-607.14,0.00010171,2]
[420817811,1776568232847,-979.46,0.00010171,2]
[420817812,1776568232857,-433.0,0.00010205,2]
[420817813,1776568232866,-187.33661247,0.00010234,2]
[420817814,1776568232877,-1116.04031304,0.00010237,3]
[420817815,1776568232887,-200.0,0.00010238,2]
[420817816,1776568232896,-11409.05,0.00010238,2]
[420817817,1776568232906,-150.99,0.00010238,2]
[420817818,1776568232916,-299.99,0.00010238,2]
[420817819,1776568232925,-9999.99,0.00010238,2]
[420817820,1776568232935,-123236.37102488,0.00010244,2]
[420817821,1776568232948,-3523.55656849,0.00010244,2]
[420817822,1776568232960,-5880.0,0.00010244,2]
[420817823,1776568232972,-1300.0,0.00010244,2]
[420817824,1776568233560,-3250.0,0.00010244,2]
[420817825,1776568233574,-253.46543089,0.00010244,2]
[420817826,1776568233589,-811.50471421,0.00010244,2]
[420817827,1776568233605,-4048.71902531,0.00010244,2]
[420817828,1776568233617,-851.12712388,0.00010244,2]
[420817837,1776568237681,-2027.98034925,0.00010071,2]
[420817838,1776568237693,-1553.52,0.00010071,2]
[420817839,1776568237706,-1897.34812686,0.00010071,2]
[420817840,1776568237734,-336.23494,0.00010071,2]
[420817841,1776568237746,-471.87366345,0.00010071,2]
[420817842,1776568237788,-557.49671702,0.00010071,2]
[420817843,1776568237800,-1076.55582393,0.00010071,2]
[420817844,1776568237812,-535.41792625,0.00010071,2]
[420817845,1776568237842,-6491.07,0.00010071,2]
[420817846,1776568237897,-3544.04180875,0.00010071,2]
[420818006,1776568239785,-1009.24365884,0.00010071,2]
[420818023,1776568239945,-181576.52507842,0.00010071,2]
[420818026,1776568239957,-652.08200092,0.00010071,2]
[420818047,1776568240159,-1360.95947265,0.00010071,2]
[420818268,1776568244234,-269.90967518,0.00010071,2]
[420818269,1776568244288,-730.12479506,0.00010071,2]
[420818270,1776568245658,-280.0,0.00010071,2]
[420818271,1776568245668,-7243.09749705,0.00010071,2]
[420818272,1776568245679,-6727.10023864,0.00010071,2]
[420818273,1776568245711,-2000.0,0.00010071,2]
[420818274,1776568245722,-801.75975999,0.00010071,2]
[420818275,1776568245765,-15732.315,0.00010071,2]
[420818276,1776568245874,-646.0500007,0.00010071,2]
[420818277,1776568246190,-17819.60380479,0.00010071,2]
[420818307,1776568461170,153.0,0.000328,120]
[420818308,1776568466624,153.0,0.000328,120]
[420818309,1776568478950,153.0,0.000328,120]
[420818310,1776568494552,153.0,0.000328,120]
[420818311,1776568507036,155.115,0.00032877,120]
[420818312,1776568509416,151.62,0.000328,120]
[420818318,1776569398535,533.0,0.00032877,120]
[420818320,1776569407781,1000.0,0.00032877,120]
[420818321,1776569419745,1000.0,0.00032877,120]
[420818322,1776569429027,1000.0,0.00032877,120]
[420818324,1776569432060,-261.0,9.197e-05,2]
[420818325,1776569432070,-300.88283027,9.197e-05,2]
[420818326,1776569432080,-150.0,9.197e-05,2]
[420818327,1776569432090,-154.01593134,9.197e-05,2]
[420818328,1776569432099,-150.0,9.197e-05,2]
[420818329,1776569432109,-150.0,9.197e-05,2]
[420818330,1776569432119,-150.0,9.197e-05,2]
[420818331,1776569432129,-150.0,9.197e-05,2]
[420818332,1776569432139,-1200.0,9.389e-05,2]
[420818333,1776569432149,-2000.0,9.39e-05,2]
[420818334,1776569432158,-433.82074766,9.39e-05,2]
[420818335,1776569432168,-1500.0,9.661e-05,2]
[420818336,1776569432177,-433.82074765,9.681e-05,2]
[420818337,1776569432186,-500.0,9.695e-05,2]
[420818338,1776569432196,-158.35,9.762e-05,2]
[420818339,1776569432206,-150.0,9.936e-05,2]
[420818341,1776569432219,-121106.0234793,9.937e-05,2]
[420818344,1776569432232,-2507.7401103,9.937e-05,2]
[420818346,1776569432248,-277.70821029,9.937e-05,2]
[420818348,1776569432259,-88105.3255665,9.937e-05,2]
[420818350,1776569432272,-1717.03856977,9.937e-05,2]
[420818363,1776569437194,1000.0,0.00032877,120]
[420818375,1776569437998,-1408.5537559,9.937e-05,2]
[420818376,1776569438011,-713.71647197,9.937e-05,2]
[420818377,1776569438023,-545.60875552,9.937e-05,2]
[420818378,1776569438035,-896.16431314,9.937e-05,2]
[420818379,1776569438110,-7168.63516731,9.937e-05,2]
[420818380,1776569438121,-433.82074765,9.971e-05,2]
[420818381,1776569438132,-12707.54408504,9.971e-05,2]
[420818382,1776569438143,-334.615,9.971e-05,2]
[420818383,1776569438166,-10391.57037895,9.971e-05,2]
[420818384,1776569438224,-1800.69231806,9.971e-05,2]
[420818395,1776569440200,-380.30947352,9.97e-05,2]
[420818396,1776569440211,-119.69052648,9.97e-05,2]
[420818397,1776569440221,-500.0,9.97e-05,2]
[420818398,1776569440230,-500.0,9.97e-05,2]
[420818399,1776569440240,-500.0,9.97e-05,2]
[420818400,1776569440249,-329.05781455,9.97e-05,2]
[420818401,1776569440258,-500.0,9.97e-05,2]
[420818402,1776569440268,-500.0,9.97e-05,2]
[420818403,1776569440279,-500.0,9.97e-05,2]
[420818404,1776569440290,-1083.94430034,9.971e-05,2]
[420818405,1776569440386,-3565.18647994,9.971e-05,2]
[420818413,1776569444213,-970.0623945,9.971e-05,2]
[420818414,1776569444226,-7430.55550813,9.971e-05,2]
[420818415,1776569444242,-6205.64920223,9.971e-05,2]
[420818416,1776569444261,-290.0,9.971e-05,2]
[420818417,1776569444273,-4587.43270832,9.971e-05,2]
[420818421,1776569446021,-97625.65324304,9.971e-05,2]
[420818422,1776569446033,-157591.83488145,9.971e-05,2]
[420818423,1776569446042,-2500.0,9.971e-05,2]
[420818424,1776569446052,-299.99,9.999e-05,2]